{"text_format":"1","workbook":"xlsx","n_sheets":9,"sheets":["Instructivo","DEMANDA ANUAL","VOLUMEN DE QUEJAS","COSTO ADMINISTRACIÓN PÚBLICA","RESUMEN DE COSTOS AP","AUXILIAR COSTO ADMINISTRACIÓN","TIEMPO DE RESPUESTA","CANAL ATENCIÓN","RESUMEN"],"not_rendered":{"charts":0,"images":7,"macros":1,"external_links":0,"defined_names":6,"comments":5,"pivot_tables":0},"unopened":[],"bounds":{"document_bytes":16777216,"sheet_cells":100000,"rows_first":2000,"rows_last":500,"rows_between":2000,"halvings":0,"cell_chars":16384,"cell_head_chars":4096},"cells_cut":0,"cells_raw":0,"read":"whole","date_system":"1900"}

{"sheet":"Instructivo","index":0,"n_rows":70,"n_cols":1,"rows_kept":70,"cut":false,"hidden":false,"merged":[]}
["CRITERIO DE PRIORIZACIÓN DE TRÁMITES ADMINISTRATIVOS"]
["Instructivo"]
["Consideraciones generales"]
[]
["En las hojas “COSTO DE ADMINISTRACIÓN PÚBLICA”y “RESUMEN”  para añadir más trámites y que apliquen las fórmulas, se deberá seleccionar la primera fila y copiarla una por cada trámite de la entidad"]
[]
["Todas las hojas tienen columnas de color celeste, en las cuales NO deben ingresar valores ya que contienen fórmulas."]
["Para la carga en GOB.EC. La institución debe recordar que el peso máximo del archivo es de 2 MB."]
["Esquema de puntuación"]
["Para priorizar un trámite, se realizará un análisis de criterios básicos y adicionales basado en información que disponen las instituciones sujetas a esta norma técnica. Cada criterio será puntuado según los lineamientos presentes en esta norma."]
["a) Demanda Anual"]
["Considerará el volumen o frecuencia de las solicitudes que ingresan al año a cada institución para la gestión de un trámite en particular."]
["La identificación del volumen anual de los trámites se realizará a través de sus registros de transacciones y/o el número de visitas de consulta de información realizadas a través de páginas web institucionales."]
["Para realizar el registro realice lo siguiente:"]
["1.- Seleccione la hoja DEMANDA ANUAL"]
["2.- Ingrese los trámites de la institución registrando el identificador y nombre en las columnas respectivas.  "]
["3.- Para cada trámite debe especificar en la columna DEMANDA ANUAL el volumen o frecuencia anual, de acuerdo a lo mencionado anteriormente."]
["4.- Una vez terminado el llenado solicitado presione el botón PUNTUACIÓN, se ordenara de menor a mayor. "]
["5.- Usted visualizará el ordenamiento de los trámites ingresados de acuerdo al número de  volumen o frecuencia anual."]
["6.- Así mismo, usted visualizará el puntaje obtenido en la columna PUNTUACIÓN de acuerdo al grupo obtenido por cada trámite de acuerdo al número de volumen o frecuencia anual cosiderando lo siguiente: ** Primer grupo (trámites con menor demanda no incluye los trámites con demanda 0 ) = 3\n** Segundo grupo (trámites con demanda intermedia) = 6\n** Tercer grupo (trámites con mayor demanda) = 10"]
["Cada vez que requiera actualizar el puntaje presionando el botón puntuación, debe verificar que la celda de la columna puntaje se encuentren vacías, es decir, se debe borrar cualquier valor de puntaje obtenido previamente."]
["b) Volumen de quejas asociadas a un trámite: "]
["Considerará la cantidad de quejas recibidas en relación a un trámite durante un año. Estas quejas deberán estar documentadas en medios físicos y/o digitales."]
["Para determinar la puntuación, se colocará en una tabla todos los trámites con sus correspondientes quejas ordenándose de menor a mayor. Se dividirá en 2 partes en los que cada grupo contenga la misma cantidad de trámites."]
["Para realizar el registro realice lo siguiente:"]
["1.- Seleccione la hoja VOLUMEN DE QUEJAS"]
["2.- Ingrese los trámites de la institución registrando el identificador y nombre en las columnas respectivas.  Si usted requiere de acuerdo al número de trámites copie filas adicionales que estén dentro del cuadro"]
["3.- Para cada trámite debe especificar en la columna VOLUMEN QUEJAS el número de quejas anual, de acuerdo a lo mencionado anteriormente."]
["4.- Una vez terminado el llenado solicitado presione el botón PUNTUACIÓN."]
["5.- Usted visualizará el ordenamiento de los trámites ingresados de acuerdo al número de  volumen o frecuencia anual."]
["6.- Así mismo, usted visualizará el puntaje obtenido en la columna PUNTUACIÓN de acuerdo al grupo obtenido por cada trámite de acuerdo al número de volumen o frecuencia anual cosiderando lo siguiente: La puntuación se basará en los siguientes grupos:\n** Primer grupo (trámites con menor cantidad de quejas, no incluye los trámites con queja 0 ) = 4\n** Segundo grupo (trámites con mayor porcentaje de quejas) = 10"]
["El valor del volumen de quejas no debe ser superior al valor del volumen de la demana, no le permitirá registrar un valor."]
["c) Costo para la administración pública: "]
["En cada trámite, basado en un caso estándar, se deberá estimar el costo incurrido en el costo de personal y recursos necesarios para su atención desde que el administrado entregó todos los requisitos hasta que la institución entregue el producto, respuesta o servicio requerido en el trámite. Se considerará:"]
["• Costo de personal:"]
["Costo del personal para atender el trámite, se excluyen actividades realizadas automáticamente o que dependen del administrado. El tiempo deberá considerar únicamente el tiempo efectivo de trabajo del personal, no debe considerar el tiempo de espera o de movimiento."]
["• Costo de recursos:"]
["Se deberá considerar el costo directo en el que la institución debe incurrir para atender un trámite. Se debe considerar los insumos o materia prima necesaria u cualquier otro que la institución considere pertinente."]
["Para realizar el registro realice lo siguiente:"]
["1.- Seleccione la hoja COSTO ADMINISTRACIÓN PÚBLICA"]
["2.- Ingrese los trámites de la institución registrando el identificador y nombre en las columnas respectivas.  Si usted requiere de acuerdo al número de trámites copie filas adicionales que estén dentro del cuadro"]
["3.- Para calcular el tiempo de las actividades, utilizar la hoja AUXILIAR COSTO ADMINISTRACIÓN donde deberá listar todas las actividades que realiza la institución en un caso estándar y asignar el tiempo mínimo que toma cada actvidad (en horas). El tiempo total de las actividades, deberá ingresar en la correspondiente celda de la hoja COSTO ADMINISTRACIÓN PÚBLICA"]
["4.- En función de la información registrada en el paso 3, la matriz entregará el costo del personal"]
["5.- Completar la columna \"Costo recursos\", en la cual ingresará el costo directo en el que incurre la institución para entregar el trámite. En este valor se considerarán los valores correspondientes a insumos y/o materia prima mínimos que se invierten por cada trámite (no se considera mano de obra)"]
["6.- La columna \"Costo para la adm. pública\" mostrará el costto de este criterio para cada trámite"]
["7,- Para que la fórmula funcione debe arrastrar hacia abajo al último de los támites ingresados, no copiar"]
["7.- Una vez que disponga del Costo para la administración pública, presionar el botón \"GENERAR\"."]
["8. Visualizar la hoja “RESUMEN DE COSTO AP” en la que va a encontrar copiada las celdas necesarias para el ordenamiento y puntuación de las mismas al presionar el botón “PUNTUACIÓN”"]
[]
["d) Tiempo de respuesta: "]
["Considerará los tiempos que a las instituciones les toma dar respuesta a un trámite desde que reciben la solicitud del administrado hasta la finalización del mismo. Para la definición del tiempo se considerará un caso estándar."]
["Para determinar la puntuación, se colocará en una tabla todos los trámites con el tiempo de respuesta, ordenándose de menor a mayor. Se dividirá en 4 grupos, en los que cada uno contenga la misma cantidad de trámites."]
["Para realizar el registro realice lo siguiente:"]
["1.- Seleccione la hoja TIEMPO DE RESPUESTA"]
["2.- Ingrese los trámites de la institución registrando el identificador y nombre en las columnas respectivas.  Si usted requiere de acuerdo al número de trámites copie filas adicionales que estén dentro del cuadro"]
["3.- Para cada trámite debe especificar en la columna TIEMPO RESPUESTA el tiempo, de acuerdo a lo mencionado anteriormente."]
["4.- Una vez terminado el llenado solicitado presione el botón PUNTUACIÓN."]
["5.- Usted visualizará el ordenamiento de los trámites ingresados de acuerdo al número de  volumen o frecuencia anual."]
["6.- Así mismo, usted visualizará el puntaje obtenido en la columna PUNTUACIÓN de acuerdo al grupo obtenido por cada trámite de acuerdo al número de volumen o frecuencia anual cosiderando lo siguiente:  La puntuación considera lo siguiente:\n** Primer grupo (menor o igual a 40 horas laboralres) = 0\n** Segundo grupo mayor  40 horas laboralres) = 30"]
["e) Canal de atención: "]
["Considerará los canales de atención a través de los cuales el administrado puede iniciar el trámite."]
["Para realizar el registro realice lo siguiente:"]
["1.- Seleccione la hoja CANAL ATENCIÓN"]
["2.- Ingrese los trámites de la institución registrando el identificador y nombre en las columnas respectivas.  Si usted requiere de acuerdo al número de trámites copie filas adicionales que estén dentro del cuadro"]
["3.- Para cada trámite debe seleccionar el canal de atención del trámite en la columna CANAL ATENCIÓN, que pueden ser: \nEl trámite se puede completar totalmente en línea: Se considera trámite totalmente en línea cuando el administrado no requiere realizar ninguna interacción presencial con la institución = 0\nEl trámite no se puede completar totalmente en línea: Se considera este caso, cuando el trámite incluye al menos una actividad, incluido mecanismos de pago, en la que el administrado deba acudir presencialmente a la institución, para la realización de dicho trámite. Los trámites presenciales se consideran dentro de esta categoría = 10"]
["4.- De acuerdo a la selección usted obtendrá la puntuación del trámite que se visualizará en la columna PUNTUACIÓN."]
[]
["f) Resumen"]
["En esta hoja deberá consolidar todas las puntuaciones obtenidas para cada trámite en los criterios a) hasta e). Adicionalmente deberá analizar los criterios adicionales que dispone la norma técnica, para estos últimos solamente deberá seleccionar en la celda correspondiente y la matriz asignará la puntuación adicional. Los criterios que deberá considerar son:\n- NECESIDADES CIUDADANAS: Si la institución ha implementado mecanismos para identificar necesidades ciudadanas respecto al trámite, seleccionar \"SI\", caso contrario, seleccionar \"NO\"\n- SUSCEPTIBILIDAD A CORRUPCIÓN: Si la institución dispone de información documentada sobre presuntos actos de corrupción, seleccionar \"SI\", caso contrario, seleccionar \"NO\"\n- VOLUMEN DE DEVOLUCIONES: Si la institución posee documentación sobre devoluciones del trámite en una cantidad significativa, seleccionar \"SI\", caso contrario, seleccionar \"NO\"\nPara que funcione la lista depelgable debe arrastrar la lista y la puntuación hacia abajo al último de los támites ingresados, no copiar"]
["En la columna puntaje total se realizará la sumatoria de los valores de los criterios básicos y adicionales. Este valor deberá registrarse en la plataforma GOB.EC"]

{"sheet":"DEMANDA ANUAL","index":1,"n_rows":39,"n_cols":4,"rows_kept":39,"cut":false,"hidden":false,"merged":[[0,0,0,3],[1,0,1,3]]}
["PRIORIZACIÓN DE TRÁMITES ADMINISTRATIVOS"]
["DEMANDA ANUAL"]
[]
["IDENTIFICADOR","TRÁMITE","DEMANDA ANUAL","PUNTAJE"]
[null,"INGRESO DE SOLICITUD DE INSPECCIONES DE APROBACIÓN DE EVENTOS",1,3]
[null," INGRESO DE SOLICITUD DE INSPECCIONES DE APROBACIÓN LOCALES COMERCIALES",2,3]
[null,"EMISIÓN DE CERTIFICADO ÚNICO VEHICULAR DEL CANTÓN SALITRE.",2,3]
[null,"EMISIÓN DE PERMISO DE USO DE SUELO PARA EVENTOS DE CONCENTRACIÓN MASIVA DEL CANTÓN SALITRE.",2,3]
[null,"INGRESO DE SOLICITUD DE INSPECCIONES DE APROBACIÓN DE CERTIFICACIÓN DE ZONA DE RIESGOS.",3,3]
[null,"ACTUALIZACIÓN DE TRANSFERENCIAS DE DOMINIOS DEL CANTÓN SALITRE.",5,3]
[null,"EMISIÓN DE PERMISO DE CONSTRUCCIÓN DE BÓVEDAS DEL GADM DE SALITRE",5,3]
[null,"PAGOS DE IMPUESTO A LAS ALCABALAS DEL CANTÓN SALITRE.",7,3]
[null,"EMISIÓN DE PERMISO DE USO DE SUELO A LAS CONCESIONES MINERAS.",8,3]
[null,"IMPUESTO DEL 1,5 POR MIL DE LOS ACTIVOS TOTALES EN EL CANTÓN SALITRE",12,3]
[null,"IMPUESTO A LAS UTILIDADES EN LA TRANSFERENCIA DE PREDIOS URBANOS Y PLUSVALÍAS",15,3]
[null,"CAMBIO DE CARACTERÍSTICAS VEHICULAR DEL CANTÓN SALITRE.",24,6]
[null,"EMISIÓN DE CERTIFICADO DE REVISIÓN VEHICULAR ANUAL DE VEHÍCULOS NUEVOS O EXONERADOS GADM SALITRE",25,6]
[null,"EMISIÓN DE PERMISO DE CONSTRUCCIÓN DE OBRA MAYOR DEL GADM DE SALITRE",25,6]
[null," INSCRIPCIÓN DE ACTOS MERCANTILES.",26,6]
[null,"EMISIÓN DE BENEFICIO DE LA TERCERA EDAD.",35,6]
[null,"SOLICITUD DE INCORPORACIÓN A CATASTRO URBANO Y RURAL DEL GADM DE SALITRE",35,6]
[null,"EMISIÓN DE PERMISOS DE RÓTULOS PUBLICITARIOS EN EL CANTÓN SALITRE.",36,6]
[null,"VENTAS DE SOLARES MUNICIPALES EN ÁREAS URBANAS DEL CANTÓN SALITRE.",36,6]
[null,"PAGO DE IMPUESTO A LA PATENTE DEL CANTÓN SALITRE",38,6]
[null,"EMISIÓN DE CERTIFICADO DE BIENES INMUEBLES DEL CANTÓN SALITRE.",40,6]
[null,"CERTIFICADO DE NO TENER BIENES INMUEBLES EN EL CANTÓN SALITRE.",42,6]
[null,"Emisión de Certificado de Avalúo Catastral ",42,6]
[null,"EMISIÓN DE CERTIFICACIÓN ZONA RURAL DEL CANTÓN SALITRE ",50,10]
[null,"EMISIÓN DE CERTIFICADO DE FRACCIONAMIENTOS URBANOS Y RURAL DEL GADM SALITRE",58,10]
[null,"CERTIFICADO DE INSCRIPCIÓN DE ESCRITURAS DEL GADM DE SALITRE.",65,10]
[null,"EMISIÓN DE PERMISOS DE VÍA PÚBLICA DEL GADM DE SALITRE",65,10]
[null,"EMISIÓN DE CERTIFICADO DE NO ADEUDAR AL GADM SALITRE",68,10]
[null,"EMISIÓN DE PERMISO DE CONSTRUCCIÓN DE OBRA MENOR DEL GAMD DE SALITRE",105,10]
[null,"EMISIÓN DE DUPLICADO DE MATRICULA VEHICULAR DEL CANTÓN SALITRE.",124,10]
[null,"EMISIÓN DE CERTIFICACIÓN DEL REGISTRO CATASTRAL CANTÓN SALITRE",125,10]
[null,"SOLICITUD DE CORRECCIONES DEL IMPUESTO PREDIAL URBANO Y RURAL DEL CANTÓN SALITRE ",152,10]
[null,"SOLICITUD DE INSPECCIONES PREDIALES DEL CANTÓN SALITRE",200,10]
[null,"EMISIÓN DE PERMISO DE USO DE SUELO DEL GADM DE SALITRE",260,10]
[null,"PROFORMA DE OBLIGACIONES PENDIENTES CON EL GADM SALITRE.",350,10]

{"sheet":"VOLUMEN DE QUEJAS","index":2,"n_rows":39,"n_cols":6,"rows_kept":39,"cut":false,"hidden":false,"merged":[[0,0,0,5],[1,0,1,5]]}
["PRIORIZACIÓN DE TRÁMITES ADMINISTRATIVOS"]
["VOLUMEN DE QUEJAS"]
[]
["IDENTIFICADOR","TRÁMITE","VOLUMEN DEMANDA","VOLUMEN DE QUEJAS","PORCENTAJE","PUNTUACIÓN"]
[null,"INGRESO DE SOLICITUD DE INSPECCIONES DE APROBACIÓN DE EVENTOS",1,0,0,0]
[null,{"$f":"+'DEMANDA ANUAL'!B6","v":" INGRESO DE SOLICITUD DE INSPECCIONES DE APROBACIÓN LOCALES COMERCIALES"},{"$f":"+'DEMANDA ANUAL'!C6","v":2},0,0,0]
[null,{"$f":"+'DEMANDA ANUAL'!B7","v":"EMISIÓN DE CERTIFICADO ÚNICO VEHICULAR DEL CANTÓN SALITRE."},{"$f":"+'DEMANDA ANUAL'!C7","v":2},0,0,0]
[null,{"$f":"+'DEMANDA ANUAL'!B8","v":"EMISIÓN DE PERMISO DE USO DE SUELO PARA EVENTOS DE CONCENTRACIÓN MASIVA DEL CANTÓN SALITRE."},{"$f":"+'DEMANDA ANUAL'!C8","v":2},0,0,0]
[null,{"$f":"+'DEMANDA ANUAL'!B9","v":"INGRESO DE SOLICITUD DE INSPECCIONES DE APROBACIÓN DE CERTIFICACIÓN DE ZONA DE RIESGOS."},{"$f":"+'DEMANDA ANUAL'!C9","v":3},0,0,0]
[null,{"$f":"+'DEMANDA ANUAL'!B10","v":"ACTUALIZACIÓN DE TRANSFERENCIAS DE DOMINIOS DEL CANTÓN SALITRE."},{"$f":"+'DEMANDA ANUAL'!C10","v":5},0,0,0]
[null,{"$f":"+'DEMANDA ANUAL'!B11","v":"EMISIÓN DE PERMISO DE CONSTRUCCIÓN DE BÓVEDAS DEL GADM DE SALITRE"},{"$f":"+'DEMANDA ANUAL'!C11","v":5},1,20,10]
[null,{"$f":"+'DEMANDA ANUAL'!B12","v":"PAGOS DE IMPUESTO A LAS ALCABALAS DEL CANTÓN SALITRE."},{"$f":"+'DEMANDA ANUAL'!C12","v":7},2,28.571428571428573,10]
[null,{"$f":"+'DEMANDA ANUAL'!B13","v":"EMISIÓN DE PERMISO DE USO DE SUELO A LAS CONCESIONES MINERAS."},{"$f":"+'DEMANDA ANUAL'!C13","v":8},2,25,10]
[null,{"$f":"+'DEMANDA ANUAL'!B14","v":"IMPUESTO DEL 1,5 POR MIL DE LOS ACTIVOS TOTALES EN EL CANTÓN SALITRE"},{"$f":"+'DEMANDA ANUAL'!C14","v":12},2,16.666666666666668,10]
[null,{"$f":"+'DEMANDA ANUAL'!B15","v":"IMPUESTO A LAS UTILIDADES EN LA TRANSFERENCIA DE PREDIOS URBANOS Y PLUSVALÍAS"},{"$f":"+'DEMANDA ANUAL'!C15","v":15},5,33.333333333333336,10]
[null,{"$f":"+'DEMANDA ANUAL'!B16","v":"CAMBIO DE CARACTERÍSTICAS VEHICULAR DEL CANTÓN SALITRE."},{"$f":"+'DEMANDA ANUAL'!C16","v":24},1,4.166666666666667,10]
[null,{"$f":"+'DEMANDA ANUAL'!B17","v":"EMISIÓN DE CERTIFICADO DE REVISIÓN VEHICULAR ANUAL DE VEHÍCULOS NUEVOS O EXONERADOS GADM SALITRE"},{"$f":"+'DEMANDA ANUAL'!C17","v":25},0,0,0]
[null,{"$f":"+'DEMANDA ANUAL'!B18","v":"EMISIÓN DE PERMISO DE CONSTRUCCIÓN DE OBRA MAYOR DEL GADM DE SALITRE"},{"$f":"+'DEMANDA ANUAL'!C18","v":25},2,8,10]
[null,{"$f":"+'DEMANDA ANUAL'!B19","v":" INSCRIPCIÓN DE ACTOS MERCANTILES."},{"$f":"+'DEMANDA ANUAL'!C19","v":26},1,3.8461538461538463,10]
[null,{"$f":"+'DEMANDA ANUAL'!B20","v":"EMISIÓN DE BENEFICIO DE LA TERCERA EDAD."},{"$f":"+'DEMANDA ANUAL'!C20","v":35},20,57.142857142857146,10]
[null,{"$f":"+'DEMANDA ANUAL'!B21","v":"SOLICITUD DE INCORPORACIÓN A CATASTRO URBANO Y RURAL DEL GADM DE SALITRE"},{"$f":"+'DEMANDA ANUAL'!C21","v":35},2,5.7142857142857144,10]
[null,{"$f":"+'DEMANDA ANUAL'!B22","v":"EMISIÓN DE PERMISOS DE RÓTULOS PUBLICITARIOS EN EL CANTÓN SALITRE."},{"$f":"+'DEMANDA ANUAL'!C22","v":36},14,38.888888888888886,10]
[null,{"$f":"+'DEMANDA ANUAL'!B23","v":"VENTAS DE SOLARES MUNICIPALES EN ÁREAS URBANAS DEL CANTÓN SALITRE."},{"$f":"+'DEMANDA ANUAL'!C23","v":36},5,13.888888888888889,10]
[null,{"$f":"+'DEMANDA ANUAL'!B24","v":"PAGO DE IMPUESTO A LA PATENTE DEL CANTÓN SALITRE"},{"$f":"+'DEMANDA ANUAL'!C24","v":38},8,21.05263157894737,10]
[null,{"$f":"+'DEMANDA ANUAL'!B25","v":"EMISIÓN DE CERTIFICADO DE BIENES INMUEBLES DEL CANTÓN SALITRE."},{"$f":"+'DEMANDA ANUAL'!C25","v":40},15,37.5,10]
[null,{"$f":"+'DEMANDA ANUAL'!B26","v":"CERTIFICADO DE NO TENER BIENES INMUEBLES EN EL CANTÓN SALITRE."},{"$f":"+'DEMANDA ANUAL'!C26","v":42},2,4.7619047619047619,10]
[null,{"$f":"+'DEMANDA ANUAL'!B27","v":"Emisión de Certificado de Avalúo Catastral "},{"$f":"+'DEMANDA ANUAL'!C27","v":42},6,14.285714285714286,10]
[null,{"$f":"+'DEMANDA ANUAL'!B28","v":"EMISIÓN DE CERTIFICACIÓN ZONA RURAL DEL CANTÓN SALITRE "},{"$f":"+'DEMANDA ANUAL'!C28","v":50},2,4,10]
[null,{"$f":"+'DEMANDA ANUAL'!B29","v":"EMISIÓN DE CERTIFICADO DE FRACCIONAMIENTOS URBANOS Y RURAL DEL GADM SALITRE"},{"$f":"+'DEMANDA ANUAL'!C29","v":58},5,8.6206896551724146,10]
[null,{"$f":"+'DEMANDA ANUAL'!B30","v":"CERTIFICADO DE INSCRIPCIÓN DE ESCRITURAS DEL GADM DE SALITRE."},{"$f":"+'DEMANDA ANUAL'!C30","v":65},10,15.384615384615385,10]
[null,{"$f":"+'DEMANDA ANUAL'!B31","v":"EMISIÓN DE PERMISOS DE VÍA PÚBLICA DEL GADM DE SALITRE"},{"$f":"+'DEMANDA ANUAL'!C31","v":65},24,36.92307692307692,10]
[null,{"$f":"+'DEMANDA ANUAL'!B32","v":"EMISIÓN DE CERTIFICADO DE NO ADEUDAR AL GADM SALITRE"},{"$f":"+'DEMANDA ANUAL'!C32","v":68},0,0,0]
[null,{"$f":"+'DEMANDA ANUAL'!B33","v":"EMISIÓN DE PERMISO DE CONSTRUCCIÓN DE OBRA MENOR DEL GAMD DE SALITRE"},{"$f":"+'DEMANDA ANUAL'!C33","v":105},5,4.7619047619047619,10]
[null,{"$f":"+'DEMANDA ANUAL'!B34","v":"EMISIÓN DE DUPLICADO DE MATRICULA VEHICULAR DEL CANTÓN SALITRE."},{"$f":"+'DEMANDA ANUAL'!C34","v":124},12,9.67741935483871,10]
[null,{"$f":"+'DEMANDA ANUAL'!B35","v":"EMISIÓN DE CERTIFICACIÓN DEL REGISTRO CATASTRAL CANTÓN SALITRE"},{"$f":"+'DEMANDA ANUAL'!C35","v":125},5,4,10]
[null,{"$f":"+'DEMANDA ANUAL'!B36","v":"SOLICITUD DE CORRECCIONES DEL IMPUESTO PREDIAL URBANO Y RURAL DEL CANTÓN SALITRE "},{"$f":"+'DEMANDA ANUAL'!C36","v":152},25,16.44736842105263,10]
[null,{"$f":"+'DEMANDA ANUAL'!B37","v":"SOLICITUD DE INSPECCIONES PREDIALES DEL CANTÓN SALITRE"},{"$f":"+'DEMANDA ANUAL'!C37","v":200},10,5,10]
[null,{"$f":"+'DEMANDA ANUAL'!B38","v":"EMISIÓN DE PERMISO DE USO DE SUELO DEL GADM DE SALITRE"},{"$f":"+'DEMANDA ANUAL'!C38","v":260},25,9.615384615384615,10]
[null,{"$f":"+'DEMANDA ANUAL'!B39","v":"PROFORMA DE OBLIGACIONES PENDIENTES CON EL GADM SALITRE."},{"$f":"+'DEMANDA ANUAL'!C39","v":350},0,0,0]

{"sheet":"COSTO ADMINISTRACIÓN PÚBLICA","index":3,"n_rows":41,"n_cols":9,"rows_kept":41,"cut":false,"hidden":false,"merged":[[0,0,0,5],[1,0,1,5],[3,0,4,0],[3,1,4,1],[3,2,3,4],[3,5,4,5]]}
["PRIORIZACIÓN DE TRÁMITES ADMINISTRATIVOS"]
["COSTOS PARA LA ADMINISTRACIÓN PÚBLICA"]
[]
["IDENTIFICADOR","TRÁMITE","INSUMOS PARA COSTO",null,null,"COSTO PARA LA ADM. PÚBLICA",null,"SBU",400]
[null,null,"TIEMPO (HORAS)","COSTO PERSONAL","COSTO RECURSOS"]
[null,"INGRESO DE SOLICITUD DE INSPECCIONES DE APROBACIÓN DE EVENTOS",3,{"$f":"C6*$I$4/160","v":7.5},2,{"$f":"D6+E6","v":9.5}]
[null,{"$f":"+'DEMANDA ANUAL'!B6","v":" INGRESO DE SOLICITUD DE INSPECCIONES DE APROBACIÓN LOCALES COMERCIALES"},3,{"$f":"C7*$I$4/160","v":7.5},2,{"$f":"D7+E7","v":9.5}]
[null,{"$f":"+'DEMANDA ANUAL'!B7","v":"EMISIÓN DE CERTIFICADO ÚNICO VEHICULAR DEL CANTÓN SALITRE."},0.5,1.25,1,2.25]
[null,{"$f":"+'DEMANDA ANUAL'!B8","v":"EMISIÓN DE PERMISO DE USO DE SUELO PARA EVENTOS DE CONCENTRACIÓN MASIVA DEL CANTÓN SALITRE."},2,5,2,7]
[null,{"$f":"+'DEMANDA ANUAL'!B9","v":"INGRESO DE SOLICITUD DE INSPECCIONES DE APROBACIÓN DE CERTIFICACIÓN DE ZONA DE RIESGOS."},2,5,5,10]
[null,{"$f":"+'DEMANDA ANUAL'!B10","v":"ACTUALIZACIÓN DE TRANSFERENCIAS DE DOMINIOS DEL CANTÓN SALITRE."},0.2,0.5,0.5,1]
[null,{"$f":"+'DEMANDA ANUAL'!B11","v":"EMISIÓN DE PERMISO DE CONSTRUCCIÓN DE BÓVEDAS DEL GADM DE SALITRE"},1,2.5,1,3.5]
[null,{"$f":"+'DEMANDA ANUAL'!B12","v":"PAGOS DE IMPUESTO A LAS ALCABALAS DEL CANTÓN SALITRE."},1,2.5,1,3.5]
[null,{"$f":"+'DEMANDA ANUAL'!B13","v":"EMISIÓN DE PERMISO DE USO DE SUELO A LAS CONCESIONES MINERAS."},2,5,5,10]
[null,{"$f":"+'DEMANDA ANUAL'!B14","v":"IMPUESTO DEL 1,5 POR MIL DE LOS ACTIVOS TOTALES EN EL CANTÓN SALITRE"},1,2.5,1,3.5]
[null,{"$f":"+'DEMANDA ANUAL'!B15","v":"IMPUESTO A LAS UTILIDADES EN LA TRANSFERENCIA DE PREDIOS URBANOS Y PLUSVALÍAS"},1,2.5,1,3.5]
[null,{"$f":"+'DEMANDA ANUAL'!B16","v":"CAMBIO DE CARACTERÍSTICAS VEHICULAR DEL CANTÓN SALITRE."},0.25,0.625,1,1.625]
[null,{"$f":"+'DEMANDA ANUAL'!B17","v":"EMISIÓN DE CERTIFICADO DE REVISIÓN VEHICULAR ANUAL DE VEHÍCULOS NUEVOS O EXONERADOS GADM SALITRE"},0.5,1.25,1,2.25]
[null,{"$f":"+'DEMANDA ANUAL'!B18","v":"EMISIÓN DE PERMISO DE CONSTRUCCIÓN DE OBRA MAYOR DEL GADM DE SALITRE"},2,5,2,7]
[null,{"$f":"+'DEMANDA ANUAL'!B19","v":" INSCRIPCIÓN DE ACTOS MERCANTILES."},2,5,1,6]
[null,{"$f":"+'DEMANDA ANUAL'!B20","v":"EMISIÓN DE BENEFICIO DE LA TERCERA EDAD."},2,5,2,7]
[null,{"$f":"+'DEMANDA ANUAL'!B21","v":"SOLICITUD DE INCORPORACIÓN A CATASTRO URBANO Y RURAL DEL GADM DE SALITRE"},1.5,3.75,2,5.75]
[null,{"$f":"+'DEMANDA ANUAL'!B22","v":"EMISIÓN DE PERMISOS DE RÓTULOS PUBLICITARIOS EN EL CANTÓN SALITRE."},1,2.5,3,5.5]
[null,{"$f":"+'DEMANDA ANUAL'!B23","v":"VENTAS DE SOLARES MUNICIPALES EN ÁREAS URBANAS DEL CANTÓN SALITRE."},4,10,8,18]
[null,{"$f":"+'DEMANDA ANUAL'!B24","v":"PAGO DE IMPUESTO A LA PATENTE DEL CANTÓN SALITRE"},2,5,3,8]
[null,{"$f":"+'DEMANDA ANUAL'!B25","v":"EMISIÓN DE CERTIFICADO DE BIENES INMUEBLES DEL CANTÓN SALITRE."},1,2.5,2,4.5]
[null,{"$f":"+'DEMANDA ANUAL'!B26","v":"CERTIFICADO DE NO TENER BIENES INMUEBLES EN EL CANTÓN SALITRE."},1,2.5,2,4.5]
[null,{"$f":"+'DEMANDA ANUAL'!B27","v":"Emisión de Certificado de Avalúo Catastral "},1,2.5,2,4.5]
[null,{"$f":"+'DEMANDA ANUAL'!B28","v":"EMISIÓN DE CERTIFICACIÓN ZONA RURAL DEL CANTÓN SALITRE "},2,5,2,7]
[null,{"$f":"+'DEMANDA ANUAL'!B29","v":"EMISIÓN DE CERTIFICADO DE FRACCIONAMIENTOS URBANOS Y RURAL DEL GADM SALITRE"},2,5,3,8]
[null,{"$f":"+'DEMANDA ANUAL'!B30","v":"CERTIFICADO DE INSCRIPCIÓN DE ESCRITURAS DEL GADM DE SALITRE."},3,7.5,3,10.5]
[null,{"$f":"+'DEMANDA ANUAL'!B31","v":"EMISIÓN DE PERMISOS DE VÍA PÚBLICA DEL GADM DE SALITRE"},2,5,2,7]
[null,{"$f":"+'DEMANDA ANUAL'!B32","v":"EMISIÓN DE CERTIFICADO DE NO ADEUDAR AL GADM SALITRE"},0.15,0.375,0.2,0.57499999999999996]
[null,{"$f":"+'DEMANDA ANUAL'!B33","v":"EMISIÓN DE PERMISO DE CONSTRUCCIÓN DE OBRA MENOR DEL GAMD DE SALITRE"},3,7.5,3,10.5]
[null,{"$f":"+'DEMANDA ANUAL'!B34","v":"EMISIÓN DE DUPLICADO DE MATRICULA VEHICULAR DEL CANTÓN SALITRE."},0.33,0.82499999999999996,3,3.8250000000000002]
[null,{"$f":"+'DEMANDA ANUAL'!B35","v":"EMISIÓN DE CERTIFICACIÓN DEL REGISTRO CATASTRAL CANTÓN SALITRE"},1,2.5,2,4.5]
[null,{"$f":"+'DEMANDA ANUAL'!B36","v":"SOLICITUD DE CORRECCIONES DEL IMPUESTO PREDIAL URBANO Y RURAL DEL CANTÓN SALITRE "},3,7.5,5,12.5]
[null,{"$f":"+'DEMANDA ANUAL'!B37","v":"SOLICITUD DE INSPECCIONES PREDIALES DEL CANTÓN SALITRE"},3,7.5,2,9.5]
[null,{"$f":"+'DEMANDA ANUAL'!B38","v":"EMISIÓN DE PERMISO DE USO DE SUELO DEL GADM DE SALITRE"},1,2.5,2,4.5]
[null,{"$f":"+'DEMANDA ANUAL'!B39","v":"PROFORMA DE OBLIGACIONES PENDIENTES CON EL GADM SALITRE."},8.3299999999999999E-2,0.20824999999999999,0.05,0.25824999999999998]
[null,{"$f":"+'DEMANDA ANUAL'!B40","v":0}]

{"sheet":"RESUMEN DE COSTOS AP","index":4,"n_rows":39,"n_cols":4,"rows_kept":39,"cut":false,"hidden":false,"merged":[[0,0,0,5],[1,0,1,5]]}
["PRIORIZACIÓN DE TRÁMITES ADMINISTRATIVOS"]
["COSTOS PARA LA ADMINISTRACIÓN PÚBLICA"]
[]
["IDENTIFICADOR","TRÁMITE","COSTO PARA LA ADM. PÚBLICA","PUNTUACIÓN"]
[null,"PROFORMA DE OBLIGACIONES PENDIENTES CON EL GADM SALITRE.",0.25824999999999998,5]
[null,"EMISIÓN DE CERTIFICADO DE NO ADEUDAR AL GADM SALITRE",0.57499999999999996,5]
[null,"ACTUALIZACIÓN DE TRANSFERENCIAS DE DOMINIOS DEL CANTÓN SALITRE.",1,5]
[null,"CAMBIO DE CARACTERÍSTICAS VEHICULAR DEL CANTÓN SALITRE.",1.625,5]
[null,"EMISIÓN DE CERTIFICADO DE REVISIÓN VEHICULAR ANUAL DE VEHÍCULOS NUEVOS O EXONERADOS GADM SALITRE",2.25,5]
[null,"EMISIÓN DE CERTIFICADO ÚNICO VEHICULAR DEL CANTÓN SALITRE.",2.25,5]
[null,"EMISIÓN DE PERMISO DE CONSTRUCCIÓN DE BÓVEDAS DEL GADM DE SALITRE",3.5,5]
[null,"IMPUESTO A LAS UTILIDADES EN LA TRANSFERENCIA DE PREDIOS URBANOS Y PLUSVALÍAS",3.5,5]
[null,"IMPUESTO DEL 1,5 POR MIL DE LOS ACTIVOS TOTALES EN EL CANTÓN SALITRE",3.5,5]
[null,"PAGOS DE IMPUESTO A LAS ALCABALAS DEL CANTÓN SALITRE.",3.5,5]
[null,"EMISIÓN DE DUPLICADO DE MATRICULA VEHICULAR DEL CANTÓN SALITRE.",3.8250000000000002,5]
[null,"CERTIFICADO DE NO TENER BIENES INMUEBLES EN EL CANTÓN SALITRE.",4.5,10]
[null,"EMISIÓN DE CERTIFICACIÓN DEL REGISTRO CATASTRAL CANTÓN SALITRE",4.5,10]
[null,"Emisión de Certificado de Avalúo Catastral ",4.5,10]
[null,"EMISIÓN DE CERTIFICADO DE BIENES INMUEBLES DEL CANTÓN SALITRE.",4.5,10]
[null,"EMISIÓN DE PERMISO DE USO DE SUELO DEL GADM DE SALITRE",4.5,10]
[null,"EMISIÓN DE PERMISOS DE RÓTULOS PUBLICITARIOS EN EL CANTÓN SALITRE.",5.5,10]
[null,"SOLICITUD DE INCORPORACIÓN A CATASTRO URBANO Y RURAL DEL GADM DE SALITRE",5.75,10]
[null," INSCRIPCIÓN DE ACTOS MERCANTILES.",6,10]
[null,"EMISIÓN DE BENEFICIO DE LA TERCERA EDAD.",7,10]
[null,"EMISIÓN DE CERTIFICACIÓN ZONA RURAL DEL CANTÓN SALITRE ",7,10]
[null,"EMISIÓN DE PERMISO DE CONSTRUCCIÓN DE OBRA MAYOR DEL GADM DE SALITRE",7,10]
[null,"EMISIÓN DE PERMISO DE USO DE SUELO PARA EVENTOS DE CONCENTRACIÓN MASIVA DEL CANTÓN SALITRE.",7,10]
[null,"EMISIÓN DE PERMISOS DE VÍA PÚBLICA DEL GADM DE SALITRE",7,10]
[null,"EMISIÓN DE CERTIFICADO DE FRACCIONAMIENTOS URBANOS Y RURAL DEL GADM SALITRE",8,20]
[null,"PAGO DE IMPUESTO A LA PATENTE DEL CANTÓN SALITRE",8,20]
[null," INGRESO DE SOLICITUD DE INSPECCIONES DE APROBACIÓN LOCALES COMERCIALES",9.5,20]
[null,"INGRESO DE SOLICITUD DE INSPECCIONES DE APROBACIÓN DE EVENTOS",9.5,20]
[null,"SOLICITUD DE INSPECCIONES PREDIALES DEL CANTÓN SALITRE",9.5,20]
[null,"EMISIÓN DE PERMISO DE USO DE SUELO A LAS CONCESIONES MINERAS.",10,20]
[null,"INGRESO DE SOLICITUD DE INSPECCIONES DE APROBACIÓN DE CERTIFICACIÓN DE ZONA DE RIESGOS.",10,20]
[null,"CERTIFICADO DE INSCRIPCIÓN DE ESCRITURAS DEL GADM DE SALITRE.",10.5,20]
[null,"EMISIÓN DE PERMISO DE CONSTRUCCIÓN DE OBRA MENOR DEL GAMD DE SALITRE",10.5,20]
[null,"SOLICITUD DE CORRECCIONES DEL IMPUESTO PREDIAL URBANO Y RURAL DEL CANTÓN SALITRE ",12.5,20]
[null,"VENTAS DE SOLARES MUNICIPALES EN ÁREAS URBANAS DEL CANTÓN SALITRE.",18,20]

{"sheet":"AUXILIAR COSTO ADMINISTRACIÓN","index":5,"n_rows":20,"n_cols":3,"rows_kept":20,"cut":false,"hidden":false,"merged":[[1,1,1,2]]}
[]
["TRÁMITE:"]
["NO.","ACTIVIDAD","TIEMPO (HORAS)"]
[1]
[2]
[3]
[4]
[5]
[6]
[7]
[8]
[9]
[10]
[11]
[12]
[13]
[14]
[15]
[]
[null,"SUMATORIA ACTIVIDADES",{"$f":"SUM(C4:C19)","v":0}]

{"sheet":"TIEMPO DE RESPUESTA","index":6,"n_rows":39,"n_cols":4,"rows_kept":39,"cut":false,"hidden":false,"merged":[[0,0,0,3],[1,0,1,3]]}
["PRIORIZACIÓN DE TRÁMITES ADMINISTRATIVOS"]
["TIEMPO DE RESPUESTA"]
[]
["IDENTIFICADOR","TRÁMITE","TIEMPO RESPUESTA (horas laborables)","PUNTUACIÓN"]
[null,"INGRESO DE SOLICITUD DE INSPECCIONES DE APROBACIÓN DE EVENTOS",64,30]
[null,{"$f":"+'DEMANDA ANUAL'!B6","v":" INGRESO DE SOLICITUD DE INSPECCIONES DE APROBACIÓN LOCALES COMERCIALES"},40,0]
[null,{"$f":"+'DEMANDA ANUAL'!B7","v":"EMISIÓN DE CERTIFICADO ÚNICO VEHICULAR DEL CANTÓN SALITRE."},1,0]
[null,{"$f":"+'DEMANDA ANUAL'!B8","v":"EMISIÓN DE PERMISO DE USO DE SUELO PARA EVENTOS DE CONCENTRACIÓN MASIVA DEL CANTÓN SALITRE."},64,30]
[null,{"$f":"+'DEMANDA ANUAL'!B9","v":"INGRESO DE SOLICITUD DE INSPECCIONES DE APROBACIÓN DE CERTIFICACIÓN DE ZONA DE RIESGOS."},40,0]
[null,{"$f":"+'DEMANDA ANUAL'!B10","v":"ACTUALIZACIÓN DE TRANSFERENCIAS DE DOMINIOS DEL CANTÓN SALITRE."},1,0]
[null,{"$f":"+'DEMANDA ANUAL'!B11","v":"EMISIÓN DE PERMISO DE CONSTRUCCIÓN DE BÓVEDAS DEL GADM DE SALITRE"},64,30]
[null,{"$f":"+'DEMANDA ANUAL'!B12","v":"PAGOS DE IMPUESTO A LAS ALCABALAS DEL CANTÓN SALITRE."},0.25,0]
[null,{"$f":"+'DEMANDA ANUAL'!B13","v":"EMISIÓN DE PERMISO DE USO DE SUELO A LAS CONCESIONES MINERAS."},64,30]
[null,{"$f":"+'DEMANDA ANUAL'!B14","v":"IMPUESTO DEL 1,5 POR MIL DE LOS ACTIVOS TOTALES EN EL CANTÓN SALITRE"},0.25,0]
[null,{"$f":"+'DEMANDA ANUAL'!B15","v":"IMPUESTO A LAS UTILIDADES EN LA TRANSFERENCIA DE PREDIOS URBANOS Y PLUSVALÍAS"},0.25,0]
[null,{"$f":"+'DEMANDA ANUAL'!B16","v":"CAMBIO DE CARACTERÍSTICAS VEHICULAR DEL CANTÓN SALITRE."},0.5,0]
[null,{"$f":"+'DEMANDA ANUAL'!B17","v":"EMISIÓN DE CERTIFICADO DE REVISIÓN VEHICULAR ANUAL DE VEHÍCULOS NUEVOS O EXONERADOS GADM SALITRE"},1,0]
[null,{"$f":"+'DEMANDA ANUAL'!B18","v":"EMISIÓN DE PERMISO DE CONSTRUCCIÓN DE OBRA MAYOR DEL GADM DE SALITRE"},64,30]
[null,{"$f":"+'DEMANDA ANUAL'!B19","v":" INSCRIPCIÓN DE ACTOS MERCANTILES."},64,30]
[null,{"$f":"+'DEMANDA ANUAL'!B20","v":"EMISIÓN DE BENEFICIO DE LA TERCERA EDAD."},64,30]
[null,{"$f":"+'DEMANDA ANUAL'!B21","v":"SOLICITUD DE INCORPORACIÓN A CATASTRO URBANO Y RURAL DEL GADM DE SALITRE"},40,0]
[null,{"$f":"+'DEMANDA ANUAL'!B22","v":"EMISIÓN DE PERMISOS DE RÓTULOS PUBLICITARIOS EN EL CANTÓN SALITRE."},64,30]
[null,{"$f":"+'DEMANDA ANUAL'!B23","v":"VENTAS DE SOLARES MUNICIPALES EN ÁREAS URBANAS DEL CANTÓN SALITRE."},720,30]
[null,{"$f":"+'DEMANDA ANUAL'!B24","v":"PAGO DE IMPUESTO A LA PATENTE DEL CANTÓN SALITRE"},0.25,0]
[null,{"$f":"+'DEMANDA ANUAL'!B25","v":"EMISIÓN DE CERTIFICADO DE BIENES INMUEBLES DEL CANTÓN SALITRE."},1,0]
[null,{"$f":"+'DEMANDA ANUAL'!B26","v":"CERTIFICADO DE NO TENER BIENES INMUEBLES EN EL CANTÓN SALITRE."},1,0]
[null,{"$f":"+'DEMANDA ANUAL'!B27","v":"Emisión de Certificado de Avalúo Catastral "},40,0]
[null,{"$f":"+'DEMANDA ANUAL'!B28","v":"EMISIÓN DE CERTIFICACIÓN ZONA RURAL DEL CANTÓN SALITRE "},64,30]
[null,{"$f":"+'DEMANDA ANUAL'!B29","v":"EMISIÓN DE CERTIFICADO DE FRACCIONAMIENTOS URBANOS Y RURAL DEL GADM SALITRE"},64,30]
[null,{"$f":"+'DEMANDA ANUAL'!B30","v":"CERTIFICADO DE INSCRIPCIÓN DE ESCRITURAS DEL GADM DE SALITRE."},64,30]
[null,{"$f":"+'DEMANDA ANUAL'!B31","v":"EMISIÓN DE PERMISOS DE VÍA PÚBLICA DEL GADM DE SALITRE"},64,30]
[null,{"$f":"+'DEMANDA ANUAL'!B32","v":"EMISIÓN DE CERTIFICADO DE NO ADEUDAR AL GADM SALITRE"},3.3000000000000002E-2,0]
[null,{"$f":"+'DEMANDA ANUAL'!B33","v":"EMISIÓN DE PERMISO DE CONSTRUCCIÓN DE OBRA MENOR DEL GAMD DE SALITRE"},64,30]
[null,{"$f":"+'DEMANDA ANUAL'!B34","v":"EMISIÓN DE DUPLICADO DE MATRICULA VEHICULAR DEL CANTÓN SALITRE."},0.5,0]
[null,{"$f":"+'DEMANDA ANUAL'!B35","v":"EMISIÓN DE CERTIFICACIÓN DEL REGISTRO CATASTRAL CANTÓN SALITRE"},40,0]
[null,{"$f":"+'DEMANDA ANUAL'!B36","v":"SOLICITUD DE CORRECCIONES DEL IMPUESTO PREDIAL URBANO Y RURAL DEL CANTÓN SALITRE "},64,30]
[null,{"$f":"+'DEMANDA ANUAL'!B37","v":"SOLICITUD DE INSPECCIONES PREDIALES DEL CANTÓN SALITRE"},64,30]
[null,{"$f":"+'DEMANDA ANUAL'!B38","v":"EMISIÓN DE PERMISO DE USO DE SUELO DEL GADM DE SALITRE"},64,30]
[null,{"$f":"+'DEMANDA ANUAL'!B39","v":"PROFORMA DE OBLIGACIONES PENDIENTES CON EL GADM SALITRE."},0.1666,0]

{"sheet":"CANAL ATENCIÓN","index":7,"n_rows":39,"n_cols":12,"rows_kept":39,"cut":false,"hidden":false,"merged":[[0,0,0,3],[1,0,1,3]]}
["PRIORIZACIÓN DE TRÁMITES ADMINISTRATIVOS"]
["CANAL DE ATENCIÓN"]
[null,null,null,null,null,null,null,null,"Totalmente en Línea",null,null,0]
["IDENTIFICADOR","TRÁMITE","CANAL ATENCIÓN","PUNTUACIÓN",null,null,null,null,"No se completa totalmente en línea.",null,null,10]
[null,"INGRESO DE SOLICITUD DE INSPECCIONES DE APROBACIÓN DE EVENTOS","No se completa totalmente en línea.",{"$f":"IF(ISBLANK(C5),\"\",IF(C5=\"Totalmente en línea\",0,IF(C5=\"Inicia en línea\",6,10)))","v":10}]
[null,{"$f":"+'DEMANDA ANUAL'!B6","v":" INGRESO DE SOLICITUD DE INSPECCIONES DE APROBACIÓN LOCALES COMERCIALES"},"No se completa totalmente en línea.",{"$f":"IF(ISBLANK(C6),\"\",IF(C6=\"Totalmente en línea\",0,IF(C6=\"Inicia en línea\",6,10)))","v":10}]
[null,{"$f":"+'DEMANDA ANUAL'!B7","v":"EMISIÓN DE CERTIFICADO ÚNICO VEHICULAR DEL CANTÓN SALITRE."},"No se completa totalmente en línea.",10]
[null,{"$f":"+'DEMANDA ANUAL'!B8","v":"EMISIÓN DE PERMISO DE USO DE SUELO PARA EVENTOS DE CONCENTRACIÓN MASIVA DEL CANTÓN SALITRE."},"No se completa totalmente en línea.",10]
[null,{"$f":"+'DEMANDA ANUAL'!B9","v":"INGRESO DE SOLICITUD DE INSPECCIONES DE APROBACIÓN DE CERTIFICACIÓN DE ZONA DE RIESGOS."},"No se completa totalmente en línea.",10]
[null,{"$f":"+'DEMANDA ANUAL'!B10","v":"ACTUALIZACIÓN DE TRANSFERENCIAS DE DOMINIOS DEL CANTÓN SALITRE."},"No se completa totalmente en línea.",10]
[null,{"$f":"+'DEMANDA ANUAL'!B11","v":"EMISIÓN DE PERMISO DE CONSTRUCCIÓN DE BÓVEDAS DEL GADM DE SALITRE"},"No se completa totalmente en línea.",10]
[null,{"$f":"+'DEMANDA ANUAL'!B12","v":"PAGOS DE IMPUESTO A LAS ALCABALAS DEL CANTÓN SALITRE."},"No se completa totalmente en línea.",10]
[null,{"$f":"+'DEMANDA ANUAL'!B13","v":"EMISIÓN DE PERMISO DE USO DE SUELO A LAS CONCESIONES MINERAS."},"No se completa totalmente en línea.",10]
[null,{"$f":"+'DEMANDA ANUAL'!B14","v":"IMPUESTO DEL 1,5 POR MIL DE LOS ACTIVOS TOTALES EN EL CANTÓN SALITRE"},"No se completa totalmente en línea.",10]
[null,{"$f":"+'DEMANDA ANUAL'!B15","v":"IMPUESTO A LAS UTILIDADES EN LA TRANSFERENCIA DE PREDIOS URBANOS Y PLUSVALÍAS"},"No se completa totalmente en línea.",10]
[null,{"$f":"+'DEMANDA ANUAL'!B16","v":"CAMBIO DE CARACTERÍSTICAS VEHICULAR DEL CANTÓN SALITRE."},"No se completa totalmente en línea.",10]
[null,{"$f":"+'DEMANDA ANUAL'!B17","v":"EMISIÓN DE CERTIFICADO DE REVISIÓN VEHICULAR ANUAL DE VEHÍCULOS NUEVOS O EXONERADOS GADM SALITRE"},"No se completa totalmente en línea.",10]
[null,{"$f":"+'DEMANDA ANUAL'!B18","v":"EMISIÓN DE PERMISO DE CONSTRUCCIÓN DE OBRA MAYOR DEL GADM DE SALITRE"},"No se completa totalmente en línea.",10]
[null,{"$f":"+'DEMANDA ANUAL'!B19","v":" INSCRIPCIÓN DE ACTOS MERCANTILES."},"No se completa totalmente en línea.",10]
[null,{"$f":"+'DEMANDA ANUAL'!B20","v":"EMISIÓN DE BENEFICIO DE LA TERCERA EDAD."},"No se completa totalmente en línea.",10]
[null,{"$f":"+'DEMANDA ANUAL'!B21","v":"SOLICITUD DE INCORPORACIÓN A CATASTRO URBANO Y RURAL DEL GADM DE SALITRE"},"No se completa totalmente en línea.",10]
[null,{"$f":"+'DEMANDA ANUAL'!B22","v":"EMISIÓN DE PERMISOS DE RÓTULOS PUBLICITARIOS EN EL CANTÓN SALITRE."},"No se completa totalmente en línea.",10]
[null,{"$f":"+'DEMANDA ANUAL'!B23","v":"VENTAS DE SOLARES MUNICIPALES EN ÁREAS URBANAS DEL CANTÓN SALITRE."},"No se completa totalmente en línea.",10]
[null,{"$f":"+'DEMANDA ANUAL'!B24","v":"PAGO DE IMPUESTO A LA PATENTE DEL CANTÓN SALITRE"},"No se completa totalmente en línea.",10]
[null,{"$f":"+'DEMANDA ANUAL'!B25","v":"EMISIÓN DE CERTIFICADO DE BIENES INMUEBLES DEL CANTÓN SALITRE."},"No se completa totalmente en línea.",10]
[null,{"$f":"+'DEMANDA ANUAL'!B26","v":"CERTIFICADO DE NO TENER BIENES INMUEBLES EN EL CANTÓN SALITRE."},"No se completa totalmente en línea.",10]
[null,{"$f":"+'DEMANDA ANUAL'!B27","v":"Emisión de Certificado de Avalúo Catastral "},"No se completa totalmente en línea.",10]
[null,{"$f":"+'DEMANDA ANUAL'!B28","v":"EMISIÓN DE CERTIFICACIÓN ZONA RURAL DEL CANTÓN SALITRE "},"No se completa totalmente en línea.",10]
[null,{"$f":"+'DEMANDA ANUAL'!B29","v":"EMISIÓN DE CERTIFICADO DE FRACCIONAMIENTOS URBANOS Y RURAL DEL GADM SALITRE"},"No se completa totalmente en línea.",10]
[null,{"$f":"+'DEMANDA ANUAL'!B30","v":"CERTIFICADO DE INSCRIPCIÓN DE ESCRITURAS DEL GADM DE SALITRE."},"No se completa totalmente en línea.",10]
[null,{"$f":"+'DEMANDA ANUAL'!B31","v":"EMISIÓN DE PERMISOS DE VÍA PÚBLICA DEL GADM DE SALITRE"},"No se completa totalmente en línea.",10]
[null,{"$f":"+'DEMANDA ANUAL'!B32","v":"EMISIÓN DE CERTIFICADO DE NO ADEUDAR AL GADM SALITRE"},"No se completa totalmente en línea.",10]
[null,{"$f":"+'DEMANDA ANUAL'!B33","v":"EMISIÓN DE PERMISO DE CONSTRUCCIÓN DE OBRA MENOR DEL GAMD DE SALITRE"},"No se completa totalmente en línea.",10]
[null,{"$f":"+'DEMANDA ANUAL'!B34","v":"EMISIÓN DE DUPLICADO DE MATRICULA VEHICULAR DEL CANTÓN SALITRE."},"No se completa totalmente en línea.",10]
[null,{"$f":"+'DEMANDA ANUAL'!B35","v":"EMISIÓN DE CERTIFICACIÓN DEL REGISTRO CATASTRAL CANTÓN SALITRE"},"No se completa totalmente en línea.",10]
[null,{"$f":"+'DEMANDA ANUAL'!B36","v":"SOLICITUD DE CORRECCIONES DEL IMPUESTO PREDIAL URBANO Y RURAL DEL CANTÓN SALITRE "},"No se completa totalmente en línea.",10]
[null,{"$f":"+'DEMANDA ANUAL'!B37","v":"SOLICITUD DE INSPECCIONES PREDIALES DEL CANTÓN SALITRE"},"No se completa totalmente en línea.",10]
[null,{"$f":"+'DEMANDA ANUAL'!B38","v":"EMISIÓN DE PERMISO DE USO DE SUELO DEL GADM DE SALITRE"},"No se completa totalmente en línea.",10]
[null,{"$f":"+'DEMANDA ANUAL'!B39","v":"PROFORMA DE OBLIGACIONES PENDIENTES CON EL GADM SALITRE."},"No se completa totalmente en línea.",10]

{"sheet":"RESUMEN","index":8,"n_rows":47,"n_cols":25,"rows_kept":47,"cut":false,"hidden":false,"merged":[[1,9,1,10],[1,11,1,12],[1,13,2,13],[0,2,0,6],[0,7,0,12],[1,5,2,5],[1,6,2,6],[1,7,1,8],[1,0,2,0],[1,1,2,1],[1,2,2,2],[1,3,2,3],[1,4,2,4]]}
[null,null,"BÁSICOS",null,null,null,null,"ADICIONALES"]
["ID trámite","Nombre del trámite","Demanda","Quejas","Costo para administración","Tiempo de respuesta","Canal de atención","Necesidades ciudadanas",null,"Susceptibilidad a corrupción",null,"Volumen de devoluciones",null,"PUNTAJE TOTAL"]
[null,null,null,null,null,null,null,"Criterio","Puntuación","Criterio","Puntuación","Criterio","Puntuación",null,null,null,null,null,null,null,"demanda",0,3,6,10]
[null,"INGRESO DE SOLICITUD DE INSPECCIONES DE APROBACIÓN DE EVENTOS",0,0,20,30,10,"SI",{"$f":"IF(H4=\"SI\",5,0)","v":5},"SI",{"$f":"IF(J4=\"SI\",10,0)","v":10},"NO",{"$f":"IF(L4=\"SI\",5,0)","v":0},{"$f":"SUM(C4:G4,I4,K4,M4)","v":75},null,null,null,null,null,null,"quejas",0,4,10]
[null,{"$f":"+'DEMANDA ANUAL'!B6","v":" INGRESO DE SOLICITUD DE INSPECCIONES DE APROBACIÓN LOCALES COMERCIALES"},0,0,20,0,10,"SI",{"$f":"IF(H5=\"SI\",5,0)","v":5},"SI",{"$f":"IF(J5=\"SI\",10,0)","v":10},"NO",{"$f":"IF(L5=\"SI\",5,0)","v":0},{"$f":"SUM(C5:G5,I5,K5,M5)","v":45}]
[null,{"$f":"+'DEMANDA ANUAL'!B7","v":"EMISIÓN DE CERTIFICADO ÚNICO VEHICULAR DEL CANTÓN SALITRE."},3,0,5,0,10,"NO",{"$f":"IF(H6=\"SI\",5,0)","v":0},"SI",{"$f":"IF(J6=\"SI\",10,0)","v":10},"NO",0,28]
[null,{"$f":"+'DEMANDA ANUAL'!B8","v":"EMISIÓN DE PERMISO DE USO DE SUELO PARA EVENTOS DE CONCENTRACIÓN MASIVA DEL CANTÓN SALITRE."},3,0,10,30,10,"NO",0,"SI",10,"NO",0,63]
[null,{"$f":"+'DEMANDA ANUAL'!B9","v":"INGRESO DE SOLICITUD DE INSPECCIONES DE APROBACIÓN DE CERTIFICACIÓN DE ZONA DE RIESGOS."},0,0,20,0,10,"SI",{"$f":"IF(H8=\"SI\",5,0)","v":5},"SI",10,"NO",0,45]
[null,{"$f":"+'DEMANDA ANUAL'!B10","v":"ACTUALIZACIÓN DE TRANSFERENCIAS DE DOMINIOS DEL CANTÓN SALITRE."},3,0,5,0,10,"NO",{"$f":"IF(H9=\"SI\",5,0)","v":0},"NO",0,"NO",0,18]
[null,{"$f":"+'DEMANDA ANUAL'!B11","v":"EMISIÓN DE PERMISO DE CONSTRUCCIÓN DE BÓVEDAS DEL GADM DE SALITRE"},3,10,5,30,10,"NO",0,"SI",10,"NO",0,68]
[null,{"$f":"+'DEMANDA ANUAL'!B12","v":"PAGOS DE IMPUESTO A LAS ALCABALAS DEL CANTÓN SALITRE."},3,10,5,0,10,"NO",{"$f":"IF(H11=\"SI\",5,0)","v":0},"NO",{"$f":"IF(J11=\"SI\",10,0)","v":0},"NO",0,28]
[null,{"$f":"+'DEMANDA ANUAL'!B13","v":"EMISIÓN DE PERMISO DE USO DE SUELO A LAS CONCESIONES MINERAS."},3,10,20,30,10,"NO",0,"SI",10,"NO",0,83]
[null,{"$f":"+'DEMANDA ANUAL'!B14","v":"IMPUESTO DEL 1,5 POR MIL DE LOS ACTIVOS TOTALES EN EL CANTÓN SALITRE"},3,10,5,0,10,"NO",0,"NO",0,"NO",0,28]
[null,{"$f":"+'DEMANDA ANUAL'!B15","v":"IMPUESTO A LAS UTILIDADES EN LA TRANSFERENCIA DE PREDIOS URBANOS Y PLUSVALÍAS"},3,10,5,0,10,"NO",0,"NO",0,"NO",0,28]
[null,{"$f":"+'DEMANDA ANUAL'!B16","v":"CAMBIO DE CARACTERÍSTICAS VEHICULAR DEL CANTÓN SALITRE."},6,10,5,0,10,"NO",0,"SI",10,"NO",0,41]
[null,{"$f":"+'DEMANDA ANUAL'!B17","v":"EMISIÓN DE CERTIFICADO DE REVISIÓN VEHICULAR ANUAL DE VEHÍCULOS NUEVOS O EXONERADOS GADM SALITRE"},6,0,5,0,10,"SI",5,"SI",10,"NO",0,36]
[null,{"$f":"+'DEMANDA ANUAL'!B18","v":"EMISIÓN DE PERMISO DE CONSTRUCCIÓN DE OBRA MAYOR DEL GADM DE SALITRE"},6,10,10,30,10,"NO",0,"SI",10,"NO",0,76]
[null,{"$f":"+'DEMANDA ANUAL'!B19","v":" INSCRIPCIÓN DE ACTOS MERCANTILES."},6,10,10,30,10,"NO",0,"NO",0,"SI",5,71]
[null,{"$f":"+'DEMANDA ANUAL'!B20","v":"EMISIÓN DE BENEFICIO DE LA TERCERA EDAD."},6,10,10,30,10,"SI",5,"No",0,"NO",0,71]
[null,{"$f":"+'DEMANDA ANUAL'!B21","v":"SOLICITUD DE INCORPORACIÓN A CATASTRO URBANO Y RURAL DEL GADM DE SALITRE"},6,10,10,0,10,"NO",0,"NO",0,"NO",0,36]
[null,{"$f":"+'DEMANDA ANUAL'!B22","v":"EMISIÓN DE PERMISOS DE RÓTULOS PUBLICITARIOS EN EL CANTÓN SALITRE."},6,10,10,30,10,"NO",0,"SI",10,"NO",0,76]
[null,{"$f":"+'DEMANDA ANUAL'!B23","v":"VENTAS DE SOLARES MUNICIPALES EN ÁREAS URBANAS DEL CANTÓN SALITRE."},6,10,20,30,10,"SI",5,"NO",0,"NO",0,81]
[null,{"$f":"+'DEMANDA ANUAL'!B24","v":"PAGO DE IMPUESTO A LA PATENTE DEL CANTÓN SALITRE"},6,10,20,0,10,"NO",0,"NO",0,"NO",0,46]
[null,{"$f":"+'DEMANDA ANUAL'!B25","v":"EMISIÓN DE CERTIFICADO DE BIENES INMUEBLES DEL CANTÓN SALITRE."},6,10,10,0,10,"NO",0,"NO",0,"NO",0,36]
[null,{"$f":"+'DEMANDA ANUAL'!B26","v":"CERTIFICADO DE NO TENER BIENES INMUEBLES EN EL CANTÓN SALITRE."},6,10,10,0,10,"NO",0,"NO",0,"NO",0,36]
[null,{"$f":"+'DEMANDA ANUAL'!B27","v":"Emisión de Certificado de Avalúo Catastral "},6,10,10,0,10,"NO",0,"NO",0,"NO",0,36]
[null,{"$f":"+'DEMANDA ANUAL'!B28","v":"EMISIÓN DE CERTIFICACIÓN ZONA RURAL DEL CANTÓN SALITRE "},10,10,10,30,10,"NO",0,"NO",0,"NO",0,70]
[null,{"$f":"+'DEMANDA ANUAL'!B29","v":"EMISIÓN DE CERTIFICADO DE FRACCIONAMIENTOS URBANOS Y RURAL DEL GADM SALITRE"},10,10,20,30,10,"NO",0,"NO",0,"NO",0,80]
[null,{"$f":"+'DEMANDA ANUAL'!B30","v":"CERTIFICADO DE INSCRIPCIÓN DE ESCRITURAS DEL GADM DE SALITRE."},10,10,20,30,10,"NO",0,"NO",0,"SI",5,85]
[null,{"$f":"+'DEMANDA ANUAL'!B31","v":"EMISIÓN DE PERMISOS DE VÍA PÚBLICA DEL GADM DE SALITRE"},10,10,10,30,10,"SI",5,"SI",10,"NO",0,85]
[null,{"$f":"+'DEMANDA ANUAL'!B32","v":"EMISIÓN DE CERTIFICADO DE NO ADEUDAR AL GADM SALITRE"},10,0,5,0,10,"NO",0,"NO",0,"NO",0,25]
[null,{"$f":"+'DEMANDA ANUAL'!B33","v":"EMISIÓN DE PERMISO DE CONSTRUCCIÓN DE OBRA MENOR DEL GAMD DE SALITRE"},10,10,20,30,10,"SI",5,"SI",10,"NO",0,95]
[null,{"$f":"+'DEMANDA ANUAL'!B34","v":"EMISIÓN DE DUPLICADO DE MATRICULA VEHICULAR DEL CANTÓN SALITRE."},10,10,5,0,10,"NO",0,"SI",10,"NO",0,45]
[null,{"$f":"+'DEMANDA ANUAL'!B35","v":"EMISIÓN DE CERTIFICACIÓN DEL REGISTRO CATASTRAL CANTÓN SALITRE"},10,10,10,0,10,"NO",0,"NO",0,"NO",0,40]
[null,{"$f":"+'DEMANDA ANUAL'!B36","v":"SOLICITUD DE CORRECCIONES DEL IMPUESTO PREDIAL URBANO Y RURAL DEL CANTÓN SALITRE "},10,10,20,30,10,"SI",5,"NO",0,"NO",0,85]
[null,{"$f":"+'DEMANDA ANUAL'!B37","v":"SOLICITUD DE INSPECCIONES PREDIALES DEL CANTÓN SALITRE"},10,10,20,30,10,"NO",0,"SI",10,"NO",0,90]
[null,{"$f":"+'DEMANDA ANUAL'!B38","v":"EMISIÓN DE PERMISO DE USO DE SUELO DEL GADM DE SALITRE"},10,10,10,30,10,"SI",5,"SI",10,"NO",0,85]
[null,{"$f":"+'DEMANDA ANUAL'!B39","v":"PROFORMA DE OBLIGACIONES PENDIENTES CON EL GADM SALITRE."},10,10,5,0,10,"NO",{"$f":"IF(H38=\"SI\",5,0)","v":0},"NO",0,"NO",0,35]
[null,{"$f":"+'DEMANDA ANUAL'!B40","v":0}]
[]
[]
[]
[]
[null,null,null,null,null,null,null,null,null,null,null,null,null,null,null,null,null,null,null,null,"cpa",5,10,20]
[null,null,null,null,null,null,null,null,null,null,null,null,null,null,null,null,null,null,null,null,"tr",0,30]
[null,null,null,null,null,null,null,null,null,null,null,null,null,null,null,null,null,null,null,null,"ca",0,10]
[null,null,null,null,null,null,null,null,null,null,null,null,null,null,null,null,null,null,null,null,null,"SI","NO"]